{"text_format":"1","workbook":"xlsx","n_sheets":4,"sheets":["ZUERST LESEN","Basisdaten","Bedarf HFK","Bedarf KHH"],"not_rendered":{"charts":0,"images":7,"macros":1,"external_links":0,"defined_names":2,"comments":0,"pivot_tables":0},"unopened":[],"bounds":{"document_bytes":16777216,"sheet_cells":100000,"rows_first":2000,"rows_last":500,"rows_between":2000,"halvings":0,"cell_chars":16384,"cell_head_chars":4096},"cells_cut":0,"cells_raw":0,"read":"whole","date_system":"1900"}

{"sheet":"ZUERST LESEN","index":0,"n_rows":0,"n_cols":0,"rows_kept":0,"cut":false,"hidden":false,"merged":[]}

{"sheet":"Basisdaten","index":1,"n_rows":136,"n_cols":11,"rows_kept":136,"cut":false,"hidden":false,"merged":[[135,1,146,7],[133,1,133,5],[34,10,50,17],[117,1,118,7],[55,10,56,17],[81,1,82,4],[110,3,110,4],[55,2,57,4]]}
[null,"Handreichung zur Risikobewertung einer Berechnung des Bedarfs an Hygienepersonal"]
[null,"nach \"Personelle und organisatorische Voraussetzungen zur Prävention nosokomialer Infektionen\""]
[null,"Empfehlung der Kommission für Krankenhaushygiene und Infektionsprävention"]
[null,"(BGBl. 2023 66:332-351)"]
[null,null,null,null,null,null,null,null,null,null,"Allgemein gilt: die KRINKO empfiehlt, die Bewertung des Risikoprofils in Absprache mit"]
[null,"I.","Bettenführende Abteilungen",null,"Anzahl der Betten nach Risikogruppe",null,null,null,null,null,"a) leitenden Ärzten,"]
[null,"a)","stationäre Betten nach Risiko",null,"hoch","mittel","niedrig",null,null,null,"b) der Krankenhausleitung und"]
[null,null,null,null,null,null,null,null,null,null,"c) dem Krankenhaushygieniker vorzunehmen"]
[null,"Anästhesiologie"]
[null,"Augenheilkunde"]
[null,"Chirurgie"]
[null,"-","Allgemeinchirurgie"]
[null,"-","Gefäßchirurgie"]
[null,"-","Herzchirurgie"]
[null,"-","Kinderchirurgie"]
[null,"-","Mund-Kiefer-Gesichtschirurgie"]
[null,"-","Neurochirurgie"]
[null,"-","Plastische Chirurgie"]
[null,"-","Thoraxchirurgie"]
[null,"-","Viszeralchirurgie"]
[null,"Unfallchirurgie"]
[null,"Gynäkologie"]
[null,"Geburtshilfe"]
[null,"Urologie"]
[null,"HNO"]
[null,"Dermatologie"]
[null,"Innere Medizin"]
[null,"-","Angiologie"]
[null,"-","Endokrinologie und Diabetologie"]
[null,"-","Gastroenterologie"]
[null,"-","Geriatrie"]
[null,"-","Hämatologie und Onkologie"]
[null,"-","Kardiologie"]
[null,"-","Nephrologie"]
[null,"-","Pneumologie",null,null,null,null,null,null,null,"→ Bei der Eingruppierung der unterschiedlichen Betten in die Risikokategorien hoch, mittel und niedrig (vgl. Tabelle 8) sollte berücksichtigt werden, dass bestimmte Patientengruppen aufgrund ihres patientenindividuellen Risikos einen höheren Beratungs- und Handlungsbedarf seitens des \nkrankenhaushygienischen Teams mit sich ziehen (z. B. Patienten mit Komplexbehandlungen, polytraumatisierte Patienten, hochgradige Immunsuppression, vermehrte Beratungsgespräche). Dieses ist bei dem Bedarf von Hygienefachpersonal pro Betten zu berücksichtigen und \nbei der Einteilung der Betten in die Kategorien gemäß Tabelle 9 bzw. 10 der aktuellen Empfehlung mit einzuberechnen. \n\nBeispiel: So können z. B. innerhalb einer Station mit 20 Behandlungsplätzen, die aufgrund der Fachdisziplin und des Aufgabenbereichs pauschal als Risikogruppe B eingestuft werden würden, durchschnittlich fünf Patienten mit MRE-Besiedlung/-lnfektion behandelt werden. Letztere würden aufgrund des höheren Betreuungsaufwands der Risikogruppe A zugeordnet werden. Somit können in diesem Beispiel 15 Behandlungsplätze zur Risikogruppe B und fünf zur Risikogruppe A zugeordnet werden (Beispiel aus der Empfehlung, S. 345). "]
[null,"-","Rheumatologie"]
[null,"Kinder- und Jugendmedizin"]
[null,"-","Kinderhämatologie"]
[null,"-","Kinderkardiologie"]
[null,"Neonatologie"]
[null,"Neurologie"]
[null,"Aufnahmestation"]
[null,"Psychiatrie"]
[null,"Rehabilitationsmedizin"]
[null,"Orthopädie"]
[null,"Zahnheilkunde"]
[null,"ggf. andere, bitte spezifizieren"]
[null,"-"]
[null,"-"]
[null,"-"]
[null,"-"]
[]
[null,"Summe der Betten",null,null,{"$f":"SUM(E9:E51)","v":0},{"$f":"SUM(F9:F51)","v":0},0]
[null,"Gesamtanzahl der Betten ",null,{"$f":"SUM(E53:G53)","v":0}]
[]
[null,"b) ","Durchschnittliche Anzahl der Betten, die von Patienten in Isolation belegt sind, sofern diese nicht durch die oben durchgeführte Risikoeinstufung berücksichtigt wurden",null,null,null,null,null,null,null,"Erläuterung: Die KRINKO regt an, den erhöhten Betreuungsaufwand von Patienten mit MRE-Besiedlung/-Infektion oder in Isolierung bei der Berechnung von Stellenanteilen an Hygienefachpersonal zu berücksichtigen. Dies ist der Tabelle 8 der Empfehlung zu entnehmen."]
[]
[]
[]
[null,"angepasste Summe der Betten bei Betreuung isolierter Patienten",null,null,{"$f":"E53+F58+G58","v":0},{"$f":"F53-F58","v":0},{"$f":"G53-G58","v":0}]
[]
[null,"Anzahl der Fachabteilungen (bitte angeben)"]
[]
[]
[null,"II.","Strukturen, Funktionsabteilungen und sonstige nicht-bettenführende Abteilungen"]
[null,"zusätzlicher Bedarf aus den vorhandenen Bereichen (+0,01 vk für KHH, +0,04 VK für HFK)"]
[null,"je nach Abteilungsstruktur als gemeinsame oder einzelne Abteilung zu bewerten"]
[]
[null,"c)","Strukturen"]
[null,"(wenn diese krankenhaushygienisch betreut sind)"]
[null,"Notfallambulanz",null,null,null,false]
[null,"Tageskliniken*",null,null,null,false]
[null,"Ambulanzen*",null,null,null,false]
[null,"Spezialambulanzen*",null,null,null,false]
[null,"ggf. andere, bitte spezifizieren "]
[]
[null,"-",null,null,null,false]
[null,"-",null,null,null,false]
[null,"-",null,null,null,false,"* sind jeweils als Summenangaben zu betrachten"]
[]
[null,"d)","Funktionsabteilungen/nicht bettenführende Abteilungen"]
[null,"Es ist zu prüfen, ob es sich jeweils um eigenständige Abteilungen handelt und ob sie in relevantem Umfang krankenhaushygienisch betreut werden"]
[]
[null,"Angiographie",null,null,null,false]
[null,"Apotheke",null,null,null,false]
[null,"Blutbank",null,null,null,false]
[null,"Bronchoskopie**",null,null,null,false]
[null,"Cafeteria",null,null,null,false]
[null,"Dialyse",null,null,null,false]
[null,"Endoskopie/ Bronchoskopie",null,null,null,false]
[null,"Ergotherapie",null,null,null,false]
[null,"Herzkatheter",null,null,null,false]
[null,"Kreissaal",null,null,null,false]
[null,"Küche",null,null,null,false]
[null,"Kurzzeitpflege",null,null,null,false]
[null,"Labor/ Mikrobiologie",null,null,null,false]
[null,"Logopädie",null,null,null,false]
[null,"Milchküche",null,null,null,false]
[null,"Notaufnahme",null,null,null,false]
[null,"Nuklearmedizin",null,null,null,false]
[null,"OP-Einheit",null,null,null,false]
[null,"Pathologie",null,null,null,false]
[null,"Physikalische Therapie",null,null,null,false]
[null,"Radiologie**",null,null,null,false]
[null,"Reinigungsdienst",null,null,null,false]
[null,"Strahlentherapie**",null,null,null,false]
[null,"technischer Dienst",null,null,null,false]
[null,"Wäscherei",null,null,null,false]
[null,"zentrale Bettenaufbereitung",null,null,null,false]
[null,"AEMP/Zentralsterilisation",null,null,null,false]
[null,"ggf. andere, bitte spezifizieren"]
[null,"-",null,null,null,false]
[null,"-",null,null,null,false]
[null,"-",null,null,null,false]
[null,"-",null,null,null,false,"** sofern eigenständige Abteilung"]
[]
[null,"III.","Zusätzliche Bedarfe"]
[null,"z. B. Leitungsaufgaben, Aus- und Weiterbildungstätigkeit, krankenhaushygienische Labortätigkeit, Forschung/Lehre, aufwändige Surveillance, wiederkehrende Baumaßnahmen"]
[]
[null,"An dieser Stelle VK-Anteile für HFK und KHH erfassen"]
[null,"Die Bedarfsberechnung sollte anhand der Erfahrungen bezüglich der unterschiedlichen Zeitaufwände erfolgen"]
[null,null,null,null,"HFK","KHH"]
[null,"-"]
[null,"-"]
[null,"-"]
[null,"-"]
[null,"-"]
[null,"-"]
[null,"-"]
[]
[null,"Summe zusätzlicher Bedarfe (HFK)",null,null,{"$f":"SUM(E123:E129)","v":0}]
[]
[null,"Summe zusätzlicher Bedarfe (KHH)",null,null,null,{"$f":"SUM(F123:F129)","v":0}]
[null,"Die Ergebnisse sind auf den weiteren Tabellenblättern \"Berechnung HFK\" und \"Berechnung KHH\" zu finden"]
[]
[null,"Haftungsausschluss: Das Gesundheitsamt Bremen (GAB) (Anbieter) übernimmt keinerlei Gewähr für die Aktualität, Korrektheit, Vollständigkeit oder Qualität der bereitgestellten Informationen. Haftungsansprüche gegen den Anbieter, welche sich auf Schäden materieller oder ideeller Art beziehen, die durch die Nutzung oder Nichtnutzung der dargebotenen Informationen bzw. durch die Nutzung fehlerhafter und unvollständiger Informationen verursacht wurden, sind grundsätzIich ausgeschlossen, sofern seitens des Anbieters kein nachweislich vorsätzIiches oder grob fahrlässiges Verschulden vorliegt. Alle Angebote sind freibleibend und unverbindlich. Der Anbieter behäIt es sich ausdrücklich vor, \nTeile der Seiten oder das gesamte Angebot ohne gesonderte Ankündigung zu verändern, zu ergänzen, zu löschen oder die Veröffentlichung zeitweise oder endgültig einzustellen.\n \n© Gesundheitsamt Bremen\nStand 08.2023"]

{"sheet":"Bedarf HFK","index":2,"n_rows":22,"n_cols":4,"rows_kept":22,"cut":false,"hidden":false,"merged":[[21,1,21,8]]}
[null,"HFK"]
[null,"I. Berechnung für bettenführende Abteilungen"]
[null,"nach Anzahl der Betten in bettenführenden Bereichen"]
[null,"A",null,{"$f":"Basisdaten!E60/100","v":0}]
[null,"(1,0 VK/100 Betten)"]
[null,"B",null,{"$f":"Basisdaten!F60/200","v":0}]
[null,"(1,0 VK/200 Betten)"]
[null,"C",null,{"$f":"Basisdaten!G60/500","v":0}]
[null,"(1,0 VK/500 Betten)"]
[]
[null,"II. Berechnung aus Strukturdaten, Funktionsabteilungen und sonstigen nicht bettenführenden Abteilungen"]
[null,"zusätzlicher Bedarf aus vorhandenen Bereichen (+ 0,04 VK je vorhandene Struktur)"]
[null,"vorhandene Strukturen"]
[null,"(n=)",{"$f":"COUNTIF(Basisdaten!F71:F115,\"WAHR\")","v":0},{"$f":"C14*0.04","v":0}]
[]
[null,"III. zusätzliche Bedarfe"]
[null,"lt. Angaben in Strukturdaten"]
[null,"zusätzliche Bedarfe",null,{"$f":"Basisdaten!E131","v":0}]
[]
[]
[null,"HFK-Bedarf gesamt [in VK]",null,{"$f":"SUM(D4,D6,D8,D14,D18)","v":0}]
[null,"Mitarbeitende in der Ausbildung sind gemäß Empfehlung der KRINKO bei der Stellenberechnung nicht voll, sondern in Abhängighkeit ihres Weiterbildungsstandes und gemäß ihrer bisher erworbenen Kenntnisse und Fähigkeiten anzurechnen."]

{"sheet":"Bedarf KHH","index":3,"n_rows":31,"n_cols":4,"rows_kept":31,"cut":false,"hidden":false,"merged":[[30,1,30,8],[23,1,24,4]]}
[null,"KHH"]
[null,"I. Berechnung für bettenführende Abteilungen"]
[null,"nach Anzahl der Betten in bettenführenden Bereichen"]
[null,"A",null,{"$f":"Basisdaten!E60/1000","v":0}]
[null,"(1,0 VK/1000 Betten)"]
[null,"B",null,{"$f":"Basisdaten!F60/2000","v":0}]
[null,"(1,0 VK/2000 Betten)"]
[null,"C",null,{"$f":"Basisdaten!G60/5000","v":0}]
[null,"(1,0 VK/5000 Betten)"]
[null,"Bettenführende Fachabteilung",null,{"$f":"Basisdaten!D62*0.01","v":0}]
[null,"(je Abteilung + 0,01 VK"]
[]
[null,"II. Berechnung aus Strukturdaten, Funktionsabteilungen und sonstigen nicht bettenführenden Abteilungen"]
[null,"zusätzlicher Bedarf aus vorhandenen Bereichen (+ 0,01 VK je vorhandene Struktur)"]
[null,"vorhandene Strukturen"]
[null,"(n=)",{"$f":"COUNTIF(Basisdaten!F71:F115,\"WAHR\")","v":0},{"$f":"C16*0.01","v":0}]
[]
[null,"III. zusätzliche Bedarfe"]
[null,"lt. Angaben in Strukturdaten"]
[null,"zusätzliche Bedarfe",null,{"$f":"Basisdaten!F133","v":0}]
[]
[]
[null,"IV. Komplexitätszuschlag"]
[null,"(für Einrichtungen mit > 400 und ≤ 800 Betten: 0,05 VK je 100 Betten,\nfür Einrichtungen mit > 800 Betten: 0,1 VK je 100 Betten)"]
[]
[null,"Komplexitätszuschlag",{"$f":"Basisdaten!D54","v":0},{"$f":"IF(AND(C26>400, C26<=800), C26*(0.05/100), IF(C26>800, C26*(0.1/100), ))","v":0}]
[]
[]
[]
[null,"KHH-Bedarf gesamt [in VK]",null,{"$f":"SUM(D26,D10,D20,D16,D8,D6,D4)","v":0}]
[null,"Mitarbeitende in der Ausbildung sind gemäß Empfehlung der KRINKO bei der Stellenberechnung nicht voll, sondern in Abhängighkeit ihres Weiterbildungsstandes und gemäß ihrer bisher erworbenen Kenntnisse und Fähigkeiten anzurechnen."]